Cogmind - Beta 16.1 @@@ ROGUE MODE // 2026.05.01 @ 22:00:01 Player: Plexion Result: Destroyed by Y-45 Defender with Beam Rifle Performance ------------- Evolutions (0) 0 Regions Visited (4) 800 Robots Destroyed (36) 180 Value Destroyed (853) 853 Prototype IDs (13) 260 Alien Tech Used (0) 0 Bonus (-143) -143 TOTAL SCORE: 1950 Bonus ------- Follower Combat Kills 53 Friendly Fire -196 Cogmind --------- Core Integrity 0/250 Matter 256/300 Energy 52/100 System Corruption 0% Temperature Cool (93) Movement Walking (130) Location -9/Recycling Parts ------- > --- POWER (1) -------- (None) > --- PROPULSION (2) --- Cargo Legs > --- UTILITY (2+2) ---- Medium Storage Unit Light Armor Plating > --- WEAPON (2) ------- Subdweller Laser Heavy Assault Rifle > --- INVENTORY (10) --- Light Treads Light Treads High-capacity Matter Pod (200) Seismic Detector 1B-0RG's Assimilator Hammer Peak State ------------ > --- POWER ------------ Makeshift Power Source > --- PROPULSION ------- Cargo Legs > --- UTILITY ---------- Medium Storage Unit Seismic Detector > --- WEAPON ----------- Small Laser Hammer > --- INVENTORY -------- Light Treads Wheel Compact Wheel High-capacity Matter Pod Subdweller Laser 1B-0RG's Assimilator [Rating: 31] Favorites ----------- Power Ion Engine Engine Ion Engine Propulsion Light Treads Treads Light Treads Leg Cargo Legs Utility Medium Storage Unit Device Seismic Detector Storage Medium Storage Unit Protection Light Armor Plating Weapon Small Laser Energy Gun Small Laser Ballistic Gun Assault Rifle Impact Weapon Hammer Build | -11 -10 -10 -10 -9 ------- Run | Yrd Mat Min Sub Rec Slots Evolved . | . . . . . Power . | . . . . . Propulsion . | . . . . . Utility . | . . . . . Weapon . | . . . . . Parts Attached 22 | 6 6 3 5 2 Power 4 | . 2 1 1 . Engine 4 | . 2 1 1 . Core . | . . . . . Reactor . | . . . . . Propulsion 4 | 2 1 . 1 . Treads 3 | 2 1 . . . Leg 1 | . . . 1 . Wheel . | . . . . . Hover . | . . . . . Flight . | . . . . . Utility 6 | 2 2 . 1 1 Device 2 | 1 1 . . . Storage 2 | 1 1 . . . Processor . | . . . . . Hackware . | . . . . . Protection 2 | . . . 1 1 Artifact . | . . . . . Weapon 8 | 2 1 2 2 1 Energy Gun 4 | . 1 1 2 . Energy Cannon . | . . . . . Ballistic Gun 3 | 2 . . . 1 Ballistic Cannon . | . . . . . Launcher . | . . . . . Special Weapon . | . . . . . Impact Weapon 1 | . . 1 . . Slashing Weapon . | . . . . . Piercing Weapon . | . . . . . Special Melee Weapon . | . . . . . Unidentified Prototypes . | . . . . . Parts Lost 4 | . . 2 2 . Power 1 | . . . 1 . Propulsion . | . . . . . Utility 2 | . . 1 1 . Weapon 1 | . . 1 . . Highest Loss Streak 2 | . . 2 1 . To Critical Strikes . | . . . . . Average Backups 6 | 2 7 9 5 5 Power . | 1 1 1 . . Propulsion 2 | 1 2 3 1 1 Utility 1 | . 2 2 1 2 Weapon 1 | . 1 1 1 1 Tool/Special . | . . . . . Unused Backups 9 | . . 2 4 3 Power 1 | . . . 1 . Propulsion 3 | . . . 2 1 Utility 2 | . . 1 . 1 Weapon 2 | . . 1 1 . Tool/Special 1 | . . . . 1 Average Slot Usage (%) 83 | . 96 99 75 55 Engine 10 | . 11 14 11 . Treads 16 | . 28 28 9 . Leg 4 | . . . 7 11 Device 10 | . 12 13 10 . Storage 12 | . 14 14 12 11 Protection 1 | . . . . 10 Energy Gun 13 | . 4 15 16 11 Ballistic Gun 6 | . 23 7 . 10 Impact Weapon 5 | . . 5 7 . Peak Build Rating 31 | 6 10 10 31 30 Average Rating 16 | 4 7 8 22 29 On Entrance 10 | . 6 8 10 29 Avg Prop Armor Cover (%) . | . . . . . Naked Turns . | . . . . . Heaviest Build 24 | 9 20 20 22 24 Greatest Support 55 | 40 40 40 55 55 Greatest Overweight (x) 5 | . . . 5 . Average Overweight (x) . | . . . . . Largest Inventory Capacity 10 | 8 10 10 10 10 Average Capacity 9 | 6 9 10 10 10 Most Carried 10 | 5 10 10 10 10 Average Carried 8 | 3 7 9 8 10 Final Capacity 10 | 8 10 10 10 10 Final Carried 10 | 5 10 7 10 10 Class Distribution -------------------- 100% | Mutant Dominant Class ---------------- Mutant | -10/Materials Mutant | -10/Mines Mutant | -10/Subcaves Mutant | -9/Recycling Resources | -11 -10 -10 -10 -9 ----------- Run | Yrd Mat Min Sub Rec Matter Collected 1007 | 264 340 223 170 10 Remotely . | . . . . . Salvage Created 1123 | 22 383 243 331 144 Parts 67 | 3 18 20 16 10 Haulers Intercepted 2 | . 2 . . . Recyclers Shooed 1 | . 1 . . . Parts Field Recycled . | . . . . . Retrieved Matter . | . . . . . Parts Self-Destructed 20 | . . . 20 . Prevented . | . . . . . Parts Restored . | . . . . . Kills | -11 -10 -10 -10 -9 ------- Run | Yrd Mat Min Sub Rec Combat Hostiles Destroyed 28 | . 7 9 9 3 Melee 2 | . . . 2 . Guns 24 | . 7 9 5 3 Classes Destroyed 11 | 1 2 3 3 2 Worker 1 | . . 1 . . Builder 1 | . . 1 . . Tunneler 1 | 1 . . . . Hauler 2 | . 2 . . . Turret 2 | . . . 2 . Swarmer 12 | . . 8 4 . Grunt 10 | . 7 1 2 . Duelist 1 | . . . . 1 Sentry 2 | . . . 1 1 Programmer 1 | . . . . 1 Subdweller 2 | . . . 2 . Thug 1 | . . 1 . . Best Kill Streak 4 | 1 4 4 3 2 Combat Bots Only 4 | . 4 3 3 2 Max Kills in Single Turn 2 | 1 1 2 2 1 Gunslinging 1 | . . . 1 . Exploded . | . . . . . Melee 1 | . . . 1 . Uniques/NPCs Destroyed . | . . . . . Combat | -11 -10 -10 -10 -9 -------- Run | Yrd Mat Min Sub Rec Hostile Shots Fired 211 | . 37 44 119 11 Missed 68 | . 6 13 47 2 Hits 143 | . 31 31 72 9 Melee 4 | . . . . 4 Projectile 139 | . 31 31 72 5 Critical Strikes 2 | . 1 . . 1 Damage Taken 1619 | . 412 296 705 206 Core 254 | . 61 25 109 59 Absorbed by Shields . | . . . . . Core Remaining (%) 100 | 100 . . . . Volleys Fired 83 | 3 30 23 18 9 Largest 2 | 2 2 2 2 2 Hottest 120 | 40 60 80 100 120 Shots Fired 164 | 6 60 46 34 18 Gun 164 | 6 60 46 34 18 Cannon . | . . . . . Launcher . | . . . . . Special . | . . . . . Kinetic 95 | 6 59 22 . 8 Thermal 45 | . . 1 34 10 Explosive . | . . . . . Electromagnetic 24 | . 1 23 . . Robot Hit Streak 12 | 4 12 5 9 6 Robot Miss Streak 5 | 1 3 5 3 1 Penetration Max . | . . . . . Secondary Targets 4 | . 1 . 3 . Max Gunslinging Chain 1 | . 1 . 1 . Shots Hit Robots 113 | 4 42 21 33 13 Core Hits 49 | 2 21 12 11 3 Critical Kills 1 | . . . 1 . Critical Parts Destroyed 3 | . . . 3 . Critical Strikes 4 | . . . 4 . Smash 4 | . . . 4 . Melee Attacks 54 | . . 11 43 . Impact 54 | . . 11 43 . Slashing . | . . . . . Piercing . | . . . . . Sneak Attacks 3 | . . 2 1 . Combat Hostiles 1 | . . . 1 . Follow-up Attacks . | . . . . . Damage Inflicted 1814 | 54 439 449 636 236 Guns 1336 | 54 420 278 348 236 Cannons . | . . . . . Explosions 67 | . . 67 . . Melee 389 | . . 101 288 . Ramming 22 | . 19 3 . . Kinetic 640 | 54 405 122 . 59 Thermal 603 | . . 78 348 177 Explosive . | . . . . . Electromagnetic 160 | . 15 145 . . Impact 389 | . . 101 288 . Slashing . | . . . . . Piercing . | . . . . . Highest Corruption . | . . . . . Average Corruption . | . . . . . Corruption Purged . | . . . . . Corruption Blocked . | . . . . . Overload Shots . | . . . . . Overflow Damage 105 | . . 25 80 . Projectiles . | . . . . . Explosions . | . . . . . Melee 105 | . . 25 80 . Knockbacks 3 | . . 1 2 . Impact 3 | . . 1 2 . Kinetic . | . . . . . Secondary . | . . . . . Self-Inflicted Damage 28 | . . 28 . . Shots 1 | . . 1 . . Rammed 4 | . 3 1 . . Targets Rammed 4 | . 3 1 . . Kicked . | . . . . . Crushed . | . . . . . Highest Temperature 84 | . 12 18 25 84 Average Temperature 23 | . 7 12 11 37 Received Heat Transfer 597 | . 243 48 288 18 Siege Activations . | . . . . . Martial Activations . | . . . . . Shielding Activations . | . . . . . Robots Disrupted . | . . . . . Combat Hostiles . | . . . . . Robots Corrupted 3 | . . 1 2 . Combat Hostiles 2 | . . . 2 . Parts Fried 5 | . . 1 4 . Impact Corruptions 4 | . . 1 3 . Robots Melted . | . . . . . Combat Hostiles . | . . . . . Parts Melted 1 | . . . . 1 Heat Transferred 845 | . . 75 575 195 Parts Sabotaged . | . . . . . Parts Stolen . | . . . . . Parts Stripped . | . . . . . Power Chain Reactions 1 | . . 1 . . Alert | -11 -10 -10 -10 -9 ------- Run | Yrd Mat Min Sub Rec Maximum Alert Level . | . . . . . Low Security (%) 100 | 100 100 100 . 100 Level 1 . | . . . . . Level 2 . | . . . . . Level 3 . | . . . . . Level 4 . | . . . . . Level 5 . | . . . . . High Security . | . . . . . Max Security . | . . . . . Peak Influence 155 | 5 90 155 . 90 Initial 40 | . . . . 40 Average 36 | . 22 44 . 39 Influence Increases 1024 | 5 200 358 250 211 Destroy 0b10 Robot/C 660 | . 140 280 180 60 Destroy 0b10 Robot/NC 25 | 5 10 10 . . Destroy Leader 94 | . 44 40 10 . Allied During Kill 19 | . . 19 . . Successful Hack 6 | . 6 . . . Select Force Hacks 150 | . . . . 150 Destroy Structure 10 | . . 9 . 1 Lose Combat Pursuer 60 | . . . 60 . Influence Decreases 949 | 5 200 241 283 220 Entered New Map 105 | . . . 61 44 Time Decay 794 | 5 200 201 212 176 Lost Part 30 | . . 20 10 . Lost Ally 20 | . . 20 . . Squads Dispatched 2 | . 2 . . . Investigation 1 | . 1 . . . Extermination . | . . . . . Reinforcement 1 | . 1 . . . Assault . | . . . . . Garrison . | . . . . . Intercept . | . . . . . Searches Triggered . | . . . . . Construction Impeded . | . . . . . Haulers Reinforced . | . . . . . Active Scanning Responses . | . . . . . Cargo Convoy Interrupts . | . . . . . Stealth | -11 -10 -10 -10 -9 --------- Run | Yrd Mat Min Sub Rec Distress Signals . | . . . . . Communications Jammed . | . . . . . Distress Signals . | . . . . . Times Spotted 45 | . 15 13 11 6 Peak Tracking Total 6 | . 3 3 4 6 Tactical Retreats 3 | . . . 3 . Traps | -11 -10 -10 -10 -9 ------- Run | Yrd Mat Min Sub Rec Traps Triggered 3 | . 2 . 1 . Indirectly . | . . . . . Trap Hack Attempts . | . . . . . Triggered . | . . . . . Disarmed . | . . . . . Reprogrammed . | . . . . . Reused . | . . . . . Traps Extracted . | . . . . . Installed . | . . . . . Triggered . | . . . . . Most Traps Carried 1 | . . . 1 1 Machines | -11 -10 -10 -10 -9 ---------- Run | Yrd Mat Min Sub Rec Machines Disabled 3 | . . . 3 . Max in Single Turn 1 | . . . 1 . Machines Repaired . | . . . . . Machines Dismantled . | . . . . . Machines Sabotaged . | . . . . . Overloaded Fab Kills . | . . . . . Hacking | -11 -10 -10 -10 -9 --------- Run | Yrd Mat Min Sub Rec Machines Accessed 7 | . 1 . 1 5 Terminals 1 | . 1 . . . Fabricators . | . . . . . Repair Stations . | . . . . . Recycling Units 5 | . . . . 5 Scanalyzers . | . . . . . Garrison Access . | . . . . . Total Hacks 11 | . 4 . 1 6 Successful 7 | . 1 . 1 5 Failed 4 | . 3 . . 1 Catastrophic . | . . . . . Database Lockouts . | . . . . . Manual 10 | . 4 . . 6 Terminals 4 | . 4 . . . Fabricators . | . . . . . Repair Stations . | . . . . . Recycling Units 6 | . . . . 6 Scanalyzers . | . . . . . Garrison Access . | . . . . . Terminal Hacks 1 | . . . 1 . Proto ID Catalog 1 | . . . 1 . Fabricator Hacks . | . . . . . Repair Station Hacks . | . . . . . Recycling Unit Hacks . | . . . . . Scanalyzer . | . . . . . Garrison Access Hacks . | . . . . . Unauthorized Hacks 6 | . 1 . . 5 Terminals 1 | . 1 . . . Operators 1 | . 1 . . . Fabricators . | . . . . . Repair Stations . | . . . . . Recycling Units 5 | . . . . 5 Tunnel 5 | . . . . 5 Scanalyzers . | . . . . . Garrison Access . | . . . . . Data Cores Recovered . | . . . . . Used . | . . . . . Hacking Detections 2 | . 1 . . 1 Full Trace Events . | . . . . . Feedback Events . | . . . . . Feedback Blocked . | . . . . . Robot Schematics Acquired . | . . . . . Robots Built . | . . . . . Authchips . | . . . . . Time . | . . . . . Total Robot Build Rating . | . . . . . Part Schematics Acquired . | . . . . . Parts Built . | . . . . . Authchips . | . . . . . Time . | . . . . . Total Part Build Rating . | . . . . . Part Studies Acquired . | . . . . . Parts Repaired . | . . . . . Time . | . . . . . Parts Recycled . | . . . . . Recycled Matter . | . . . . . Retrieved Matter . | . . . . . Retrieved Components . | . . . . . Parts Scanalyzed . | . . . . . Part Schematics Acquired . | . . . . . Parts Damaged . | . . . . . Bothacking | -11 -10 -10 -10 -9 ------------ Run | Yrd Mat Min Sub Rec Used RIF Installer . | . . . . . Robots Hacked . | . . . . . Non-combat . | . . . . . Combat . | . . . . . Robot Hacks Applied . | . . . . . Relay Couplers Released . | . . . . . Fabnet Peak Effective % . | . . . . . Robots Rewired . | . . . . . Allies Hacked . | . . . . . Hacks Repelled . | . . . . . Allies | -11 -10 -10 -10 -9 -------- Run | Yrd Mat Min Sub Rec Total Allies 3 | . . 3 . . Largest Group 2 | . . 2 . . Highest-Rated Group 41 | . . 41 . . Highest-Rated Ally 31 | . . 31 . . Total Orders . | . . . . . Ally Attacks 18 | . . 18 . . Total Damage 149 | . . 149 . . Kills 5 | . . 5 . . Allies Corrupted . | . . . . . Allies Melted . | . . . . . Intel | -11 -10 -10 -10 -9 ------- Run | Yrd Mat Min Sub Rec Active Infowar (turns) 2677 | 16 498 612 1551 . Seismic 2677 | 16 498 612 1551 . Robot Analysis Total . | . . . . . Derelict Logs Recovered 4 | . . 2 2 . Drone Launches . | . . . . . Drone Recoveries . | . . . . . Exploration | -11 -10 -10 -10 -9 ------------- Run | Yrd Mat Min Sub Rec Turns Passed 4118 | 99 592 1220 1782 425 Spaces Moved 2351 | 51 280 691 1028 301 Core 6 | 4 . . 2 . Treads 1357 | 47 280 691 339 . Legs 988 | . . . 687 301 Wheels . | . . . . . Hover . | . . . . . Flight . | . . . . . Fastest Speed 50 | 50 160 160 130 130 Average Speed 147 | 151 160 160 140 130 Slowest Speed 300 | 160 160 160 300 130 Overloaded Moves . | . . . . . Propulsion Burnouts . | . . . . . Robots Hopped . | . . . . . Potential Cave-ins . | . . . . . Cave-ins Triggered . | . . . . . Exploration Rate (%) 58 | 5 67 95 59 67 Regions Visited 4 Branch Regions 3 Pre-discovered Areas 7 | . . . 2 5 Known Exits Taken . | . . . . . Unknown Exits Taken 4 | 1 1 1 1 . Scrap Searched 1 | . . 1 . . Spaces Dug 4 | . . 2 2 . Terrain Destroyed 12 | . . 10 2 . Melee 4 | . . 2 2 . Projectile . | . . . . . AOE 8 | . . 8 . . Terrain Rammed . | . . . . . Walls Destroyed . | . . . . . Machines Disabled . | . . . . . Actions | -11 -10 -10 -10 -9 --------- Run | Yrd Mat Min Sub Rec Total 2746 | 64 365 739 1259 319 Wait 168 | . 35 . 133 . Move 2347 | 50 279 690 1027 301 Hop . | . . . . . Pick Up 17 | 5 3 2 5 2 Fast Attach 14 | 6 2 . 3 3 Attach 4 | . 1 2 1 . Detach 6 | . 2 . 4 . Swap 28 | . 8 6 14 . Drop 21 | . 2 4 11 4 Fire 83 | 3 30 23 18 9 Melee 54 | . . 11 43 . Ram . | . . . . . Kick . | . . . . . Crush 4 | . 3 1 . . Escape Stasis . | . . . . . Rewire . | . . . . . Trap . | . . . . . Miscellaneous . | . . . . . Route ------- -11/Scrapyard -10/Materials (discovered 3 exits: [*Mat x2] / [*Min]) -10/Mines (discovered 4 exits: [*Mat x2] / [*Exi] / *Sub) -10/Subcaves (discovered 2 exits: [*Mat] / *Rec) -9/Recycling (discovered 1 exit: [*Fac]) History --------- Turn | Location | Event 3 | -11/Scrapyard | Discovered new exit (range 15) 100 | -11/Scrapyard | Entered Materials 314 | -10/Materials | Build established: Mutant 361 | -10/Materials | Discovered new exit (range 16) 609 | -10/Materials | Discovered new exit (range 16) 663 | -10/Materials | Discovered new exit (range 6) 692 | -10/Materials | Entered Mines 695 | -10/Mines | Received a Mining Laser from a helpful Derelict 718 | -10/Mines | Excavation squad dispatched 718 | -10/Mines | A large section of the Mines collapsed 848 | -10/Mines | Discovered new exit (range 6) 984 | -10/Mines | Found a Scrap Suit stashed away for nefarious purposes 1000 | -10/Mines | Found a hidden stash of uninstalled traps 1018 | -10/Mines | Deemed a non-threat by the Exiles lab entrance 1018 | -10/Mines | Discovered new exit (range 5) 1224 | -10/Mines | Learned 8 Materials zone layouts 1268 | -10/Mines | Learned Materials stockpile data 1722 | -10/Mines | Discovered new exit (range 8) 1903 | -10/Mines | Discovered new exit (range 6) 1912 | -10/Mines | Entered Subcaves 2113 | -10/Subcaves | Discovered new exit (range 10) 2116 | -10/Subcaves | Shifting Twisted Machinery released Sub. Laser 2117 | -10/Subcaves | Shifting Twisted Machinery released Flamer 2400 | -10/Subcaves | Shifting Twisted Machinery released Sub. Power Source 2472 | -10/Subcaves | Learned location of Storage (-9) 2487 | -10/Subcaves | Visited 4L-MR0's lab 2509 | -10/Subcaves | Found Cargo Legs 2510 | -10/Subcaves | Attached Cargo Legs, gained temporary slots: Utility x2 2514 | -10/Subcaves | Found Prototype Special Melee Weapon 2707 | -10/Subcaves | A swath of the cavern ceiling suddenly collapsed 2866 | -10/Subcaves | Core integrity fell below 50% 3275 | -10/Subcaves | Shifting Twisted Machinery released Sub. Monowheel 3298 | -10/Subcaves | Shifting Twisted Machinery released Mak. Light Armor Plating 3632 | -10/Subcaves | Discovered new exit (range 16) 3694 | -10/Subcaves | Entered Recycling 3981 | -9/Recycling | Discovered new exit (range 15) 4098 | -9/Recycling | Core integrity fell below 20% 4119 | -9/Recycling | Destroyed by Y-45 Defender with Beam Rifle Last Messages --------------- 03973_ Connecting with Terminal... 03981_ EXIT=FOUND 03985_ Connecting with Recycling Unit... >>Force(Tunnel) DISCOVERED[-4/Archives] 03996_ Connecting with Recycling Unit... >>Force(Tunnel) DISCOVERED[-1/Access] 04009_ Connecting with Recycling Unit... >>Force(Tunnel) DISCOVERED[-4/Hub_04(d)] 04091_ P-60 Hacker springs to life. 04092_ Y-45 Defender springs to life. 04092_ L-31 Rogue springs to life. 04092_ I-25 Savior springs to life. 04098_ P-60 Hacker destroyed. 04109_ Lgt. Armor Plating severed. 04110_ Acquired Lgt. Armor Plating. 04111_ L-31 Rogue destroyed. 04119_ U-05 Engineer builds a Door. Map ----- +----------------------------------------------------+ | ?# # ! !#????? | | ?###"Y"## #####+#########+##### #????? | | ???#"""## #?? ?????#!!!!????| #????? | | ######### ## """"" ???# ! #???[%! #????? | | # ## """"" #??# !! #????##########????? | | # ## """"" #??# !!#??????????????????? | | # ## """"" #??# !#??????????????????? | | # ## """"" #??# #??????????????????? | | # ## ?????????# !#??????????????????? | | + + ?????????# #??????????????????? | | # ## ??????????# !#??????????????????? | | #####????????????# !#??????????????????? | | #????????????????# #??????????????????? | | #????????????????# #??????????????????? | | #????????????????? #??????????????????? | | #+###+###?????????????????#####??????????????????? | | #??????????????????????????????????????????? | | #???????????????###############????????????? | | ###### "??????# % #????????????? | | + ""?????# |#????????????? | | ### "??????# ! !! !#????????????? | | """ T#???????????? [ ! #????????????? | | """"" ##??????????????! ]% #????????????? | | """"" T#???????????????? ] ? #????????????? | | """"" ##?????#r###########+#####+####?????????? | | """ #??????# r /i@Yb%! u+ ????????? | | #??????# ################?????????? | | ######## #????????????????????????? | | #????????????????????????? | | #############+##+##+#????????????????????????? | | #??????????= ?????????????????????????????? | | #####???????? !???????????????????????????? | | ???????????! % /! ?????????????????????????? | | ??????????# [ =[#????????????????????????? | | ??????????###############????????????????????????? | | ?????????????????????????????????????????????????? | | ?????????????????????????????????????????????????? | | | | | | | | | | | | | | | | | | | | | | | | | | | +----------------------------------------------------+ Best States ------------- Heat Dissipation 39 Energy Generation 15 Energy Capacity 250 Matter Stores 300 Matter Capacity 300 Sight Range 16 Terrain Scan Density 10 Armor Coverage 150 Evasion (%) 55 Recoil Reduction 2 Item Schematics ----------------- None Robot Schematics ------------------ None Fabricated ------------ Nothing Repaired ---------- Nothing Studied --------- None Alien Tech Used ----------------- None Achievements -------------- None Challenges ------------ None Game ------ Seed CompanionFortressRipteeth Manual? 0 Play Time 00:19:46 Cumulative 970.7 hours Start 2026.05.01 @ 21:42:37 End 2026.05.01 @ 22:00:01 Sessions 1 Manual Loads 0 Difficulty Rogue Special Mode None Game No. 866 Rogue 779 Adventurer 87 Explorer 0 Win Type - Total 66 Types 11/9/33/2/1/1/5/1/1/2 Lore% 97 Gallery% 90 Achievement% 73 Wizard Run 0 Options --------- Layout 0 ASCII 0 Keyboard 1 Movement Numpad Keybinds 0 Fullscreen 2 Font 18/SmallcapsGlow Map View 76x50 Zoom Use 0% Tactical HUD 1 Map Filters NONE Filters NONE Steam 1 RUN: e0c9b36f-7232-470e-8a8e-7eecbf44f653